bitfinex-derivatives/quotes_SOLF0:USTF0_20240823
["timestamp","ask_amount","ask_price","bid_price","bid_amount"]
[1724424068995,1.3433,144.71,144.65,3.4559]
[1724424069192,0.04559263,144.69,144.67,0.04702894]
[1724424069993,0.04559263,144.69,144.68,3.4553]
[1724424070595,0.04559263,144.69,144.67,0.04702894]
[1724424072492,0.04559263,144.69,144.67,3.50252894]
[1724424073196,0.04559263,144.69,144.68,3.4553]
[1724424073598,0.04559263,144.69,144.67,3.50252894]
[1724424073803,0.04559263,144.69,144.67,0.04702894]
[1724424074197,0.04559263,144.69,144.67,3.50252894]
[1724424074497,0.04559263,144.69,144.67,0.04702894]
[1724424076396,33.17,144.68,144.58,1.3562]
[1724424076595,33.17,144.68,144.62,3.4567]
[1724424076795,3.4556,144.67,144.59,6.19598419]
[1724424076999,33.17,144.68,144.59,3.51318419]
[1724424077199,36.55815738,144.68,144.59,3.51318419]
[1724424077402,0.05074541,144.65,144.62,0.04662386]
[1724424081107,0.05074541,144.65,144.62,3.50332386]
[1724424082009,0.05074541,144.65,144.62,0.04662386]
[1724424082508,0.05074541,144.65,144.63,3.4565]
[1724424083008,0.05074541,144.65,144.64,36.6263]
[1724424083215,33.17,144.75,144.64,33.17]
[1724424084210,0.0451375,144.71,144.68,33.21435067]
[1724424084509,0.0451375,144.71,144.68,3.49945067]
[1724424084699,0.0451375,144.71,144.68,0.04435067]
[1724424085499,0.0451375,144.71,144.69,3.455]
[1724424086606,0.0451375,144.71,144.68,3.49965067]
[1724424087207,0.0451375,144.71,144.68,0.04435067]
[1724424087501,0.0451375,144.71,144.69,3.4549]
[1724424088408,0.0451375,144.71,144.68,0.04435067]
[1724424089504,0.0451375,144.71,144.69,3.455]
[1724424090010,0.0451375,144.71,144.68,3.49955067]
[1724424091105,0.0451375,144.71,144.69,3.455]
[1724424091510,0.0451375,144.71,144.68,33.21435067]
[1724424091706,33.17,144.79,144.7,33.17]
[1724424092108,3.4721897,144.78,144.68,33.17]
[1724424092307,33.17,144.79,144.68,33.17]
[1724424092706,33.17,144.77,144.67,4.77489836]
[1724424092911,3.50563158,144.75,144.72,0.04937814]
[1724424093109,0.05193158,144.75,144.72,0.04937814]
[1724424094611,0.05193158,144.75,144.72,3.50367814]
[1724424094909,0.05193158,144.75,144.72,0.04937814]
[1724424095811,33.22193158,144.75,144.72,0.04937814]
[1724424096110,3.4539,144.74,144.72,0.04937814]
[1724424096310,33.22193158,144.75,144.72,0.04937814]
[1724424096512,3.4539,144.74,144.72,0.04937814]
[1724424097016,33.22193158,144.75,144.72,0.04937814]
[1724424097614,33.17,144.73,144.64,2.6628]
[1724424098213,33.17,144.75,144.65,33.17]
[1724424098717,0.04520002,144.71,144.69,0.04485994]
[1724424099416,33.21520002,144.71,144.69,0.04485994]
[1724424099818,36.66980002,144.71,144.69,0.04485994]
[1724424100213,33.21520002,144.71,144.69,0.04485994]
[1724424100416,3.4548,144.7,144.69,0.04485994]
[1724424100614,33.17,144.71,144.6,1.3975]
[1724424100825,33.17,144.67,144.6,1.3975]
[1724424101013,33.17,144.67,144.63,3.4563]
[1724424101322,33.17,144.67,144.59,3.51318419]
[1724424101513,33.17,144.67,144.6,3.4572]
[1724424101815,0.05175537,144.64,144.62,0.04691009]
[1724424105316,0.05175537,144.64,144.62,3.50341009]
[1724424105512,0.05175537,144.64,144.62,0.04691009]
[1724424105711,0.05175537,144.64,144.62,3.50341009]
[1724424106817,34.48,144.71,144.62,3.50341009]
[1724424106818,1.31,144.71,144.62,33.21691009]
[1724424107117,1.31,144.71,144.62,33.17]
[1724424107317,1.31,144.71,144.65,3.4558]
[1724424107510,1.31,144.71,144.64,33.17]
[1724424107714,1.31,144.71,144.66,3.4557]
[1724424107916,0.05176975,144.7,144.67,0.04747984]
[1724424109014,0.05176975,144.7,144.68,3.4553]
[1724424109614,0.05176975,144.7,144.67,0.04747984]
[1724424110720,0.05176975,144.7,144.67,3.50287984]
[1724424110917,0.05176975,144.7,144.67,0.04747984]
[1724424114022,3.50676975,144.7,144.67,0.04747984]
[1724424114324,0.05176975,144.7,144.67,0.04747984]
[1724424115729,3.50666975,144.7,144.67,0.04747984]
[1724424116421,0.05176975,144.7,144.67,0.04747984]
[1724424117722,33.22176975,144.7,144.67,0.04747984]
[1724424118322,36.6253,144.68,144.6,33.17]
[1724424118720,3.4551,144.69,144.64,3.4562]
[1724424119223,1.3696,144.7,144.62,33.17]
[1724424119628,0.05008585,144.67,144.65,0.04385596]
[1724424120526,0.05008585,144.67,144.66,3.4558]
[1724424123530,1.3053,144.74,144.7,3.4548]
[1724424123932,1.4138,144.75,144.68,33.17]
[1724424124129,1.3053,144.81,144.71,3.4543]
[1724424124130,33.17,144.8,144.71,3.4543]
[1724424124437,33.17,144.8,144.67,1.2864]
[1724424124438,2.7217,144.8,144.72,33.17]
[1724424124629,0.04978859,144.77,144.75,0.05296844]
[1724424124830,0.04978859,144.77,144.75,3.50656844]
[1724424125236,0.04978859,144.77,144.75,0.05296844]
[1724424125431,0.04978859,144.77,144.76,3.4534]
[1724424126135,37.2494,144.86,144.79,3.4527]
[1724424126530,37.2494,144.86,144.76,34.5707]
[1724424126531,7.5305,144.86,144.77,33.17]
[1724424126733,7.5305,144.86,144.8,3.4524]
[1724424126933,7.5305,144.86,144.77,33.17]
[1724424127238,0.04920103,144.83,144.8,0.04746869]
[1724424128138,3.4521,144.82,144.8,0.04746869]
[1724424128442,0.04920103,144.83,144.8,0.04746869]
[1724424129237,3.4522,144.81,144.8,0.04746869]
[1724424129742,0.04920103,144.83,144.8,0.04746869]
[1724424130437,33.17,144.82,144.7,15.82699807]
[1724424130640,33.17,144.82,144.71,33.17]
[1724424130940,3.4525,144.8,144.71,33.17]
[1724424131440,0.05264677,144.77,144.74,0.04886343]
[1724424132140,0.05264677,144.77,144.74,3.50256343]
[1724424132638,0.05264677,144.77,144.74,0.04886343]
[1724424133647,3.4534,144.76,144.74,0.04886343]
[1724424133840,0.05264677,144.77,144.74,0.04886343]
[1724424134138,3.4536,144.75,144.74,0.04886343]
[1724424134533,0.05264677,144.77,144.74,0.04886343]
[1724424134843,3.4534,144.76,144.74,0.04886343]
[1724424135640,3.4536,144.75,144.74,0.04886343]
[1724424135844,0.05264677,144.77,144.74,0.04886343]
[1724424136144,0.05264677,144.77,144.75,3.4534]
[1724424136337,0.05264677,144.77,144.74,0.04886343]
[1724424136941,3.50584677,144.77,144.74,0.04886343]
[1724424137239,0.05264677,144.77,144.74,0.04886343]
[1724424137640,0.05264677,144.77,144.75,3.4534]
[1724424137943,0.05264677,144.77,144.74,0.04886343]
[1724424138848,0.05264677,144.77,144.74,1.35776343]
[1724424139046,0.05264677,144.77,144.76,3.4534]
[1724424139244,0.05264677,144.77,144.74,4.85233403]
[1724424139443,0.05264677,144.77,144.76,3.4534]
[1724424140551,2.6416,144.86,144.76,33.17]
[1724424141546,2.6416,144.86,144.77,3.4529]
[1724424141843,33.21563326,144.82,144.8,0.04998873]
[1724424142045,3.4524,144.81,144.8,0.04998873]
[1724424142853,33.21563326,144.82,144.8,0.04998873]
[1724424143052,0.04563326,144.82,144.8,0.04998873]
[1724424143741,0.04563326,144.82,144.8,3.50228873]
[1724424144144,0.04563326,144.82,144.8,0.04998873]
[1724424144549,0.04563326,144.82,144.81,3.4522]
[1724424146357,0.04563326,144.82,144.8,3.50238873]
[1724424146852,0.04563326,144.82,144.8,0.04998873]
[1724424148454,0.04563326,144.82,144.8,33.21998873]
[1724424148955,0.04563326,144.82,144.8,36.67228873]
[1724424149155,0.04563326,144.82,144.8,3.50228873]
[1724424149855,0.04563326,144.82,144.81,3.4522]
[1724424150051,66.71875495,144.88,144.8,66.38998873]
[1724424150257,66.71875495,144.88,144.83,33.17]
[1724424151060,70.16925495,144.88,144.83,36.6216]
[1724424151254,0.04395416,144.87,144.84,0.04536543]
[1724424152459,1.34045416,144.87,144.84,0.04536543]
[1724424152667,3.4512,144.85,144.84,0.04536543]
[1724424153961,4.79135416,144.87,144.84,0.04536543]
[1724424154258,1.34045416,144.87,144.84,0.04536543]
[1724424155363,4.79135416,144.87,144.84,0.04536543]
[1724424155556,1.34045416,144.87,144.84,0.04536543]
[1724424155758,3.4512,144.85,144.84,0.04536543]
[1724424156364,33.17,144.85,144.76,1.4082]
[1724424156666,3.39086593,144.84,144.73,33.17]
[1724424156867,3.452,144.82,144.73,33.17]
[1724424157061,33.17,144.85,144.73,33.17]
[1724424157457,1.2965,144.87,144.78,0.04570157]
[1724424157458,0.04821055,144.8,144.78,0.04570157]
[1724424157758,0.04821055,144.8,144.7,4.0808]
[1724424157759,33.17,144.8,144.7,2.6761]
[1724424158065,3.4538,144.75,144.7,3.4548]
[1724424158264,36.69161557,144.78,144.7,3.4548]
[1724424158467,36.69161557,144.78,144.67,33.17]
[1724424158468,33.17,144.76,144.67,33.17]
[1724424158671,33.17,144.74,144.66,1.3924]
[1724424159266,33.17,144.74,144.69,0.05133129]
[1724424159267,0.05305593,144.71,144.69,0.05133129]
[1724424168163,3.50775593,144.71,144.69,0.05133129]
[1724424168367,0.05305593,144.71,144.69,0.05133129]
[1724424169872,0.05305593,144.71,144.69,3.50613129]
[1724424170075,0.05305593,144.71,144.69,0.05133129]
[1724424170567,0.05305593,144.71,144.7,3.4548]
[1724424171065,0.05305593,144.71,144.69,0.05133129]
[1724424172374,0.05305593,144.71,144.7,3.4548]
[1724424172770,0.05305593,144.71,144.69,0.05133129]
[1724424172970,0.05305593,144.71,144.69,3.50623129]
[1724424173176,0.05305593,144.71,144.69,0.05133129]
[1724424173864,0.05305593,144.71,144.7,3.4548]
[1724424174972,0.05305593,144.71,144.69,3.50633129]
[1724424175168,0.05305593,144.71,144.69,0.05133129]
[1724424178973,3.50765593,144.71,144.69,0.05133129]
[1724424179378,3.4548,144.7,144.69,0.05133129]
[1724424179677,0.05305593,144.71,144.69,0.05133129]
[1724424180684,3.50765593,144.71,144.69,0.05133129]
[1724424180888,33.22305593,144.71,144.54,29.17435127]
[1724424181183,33.17,144.67,144.56,33.6092103]
[1724424181485,36.60651191,144.67,144.57,3.38574644]
[1724424181685,33.17,144.65,144.56,33.17]
[1724424181885,0.05248318,144.62,144.59,0.05019223]
[1724424182086,0.05248318,144.62,144.59,3.50759223]
[1724424182284,0.05248318,144.62,144.59,0.05019223]
[1724424182782,0.05248318,144.62,144.6,3.457]
[1724424182986,0.05248318,144.62,144.59,0.05019223]
[1724424184283,3.50928318,144.62,144.59,0.05019223]
[1724424184590,0.05248318,144.62,144.59,0.05019223]
[1724424185791,3.50938318,144.62,144.59,0.05019223]
[1724424185989,0.05248318,144.62,144.59,0.05019223]
[1724424186893,3.50938318,144.62,144.59,0.05019223]
[1724424187098,0.05248318,144.62,144.59,0.05019223]
[1724424187392,0.05248318,144.62,144.59,33.22019223]
[1724424188089,0.05248318,144.62,144.6,3.457]
[1724424188689,0.05248318,144.62,144.59,3.50759223]
[1724424189191,0.05248318,144.62,144.59,0.05019223]
[1724424190396,0.05248318,144.62,144.6,3.4572]
[1724424190892,0.05248318,144.62,144.61,3.457]
[1724424192994,0.05248318,144.62,144.59,0.05019223]
[1724424193389,0.05248318,144.62,144.61,3.457]
[1724424193694,0.05248318,144.62,144.59,0.05019223]
[1724424194702,0.05248318,144.62,144.51,36.35056921]
[1724424194703,33.17,144.6,144.5,3.18056921]
[1724424194888,33.17,144.6,144.47,25.4445537]
[1724424194889,33.17,144.55,144.47,3.41351302]
[1724424195896,0.0436557,144.52,144.5,0.02518621]
[1724424199400,0.0436557,144.52,144.51,3.4594]
[1724424201101,33.17,144.58,144.55,3.4583]
[1724424201600,33.17,144.6,144.55,3.4583]
[1724424201905,33.17,144.6,144.51,33.17]
[1724424202298,0.04892844,144.57,144.54,0.04436965]
[1724424202602,1.407,144.63,144.59,3.4574]
[1724424202901,36.64244001,144.66,144.55,33.17]
[1724424202902,0.04644849,144.57,144.55,33.17]
[1724424203100,36.70777511,144.66,144.6,0.05250752]
[1724424203294,33.17,144.66,144.55,36.67182352]
[1724424203501,0.05049699,144.64,144.62,0.05072743]
[1724424203802,33.22049699,144.64,144.55,3.50182352]
[1724424203996,33.22049699,144.64,144.62,0.05273765]
[1724424204197,0.05190989,144.64,144.6,3.4572]
[1724424204400,0.0461573,144.63,144.62,0.04986681]
[1724424204597,0.0461573,144.63,144.61,0.05005224]
[1724424204805,0.0461573,144.63,144.61,0.04881732]
[1724424205200,0.0461573,144.63,144.62,3.4567]
[1724424215820,27.64,144.71,144.68,3.4553]
[1724424216019,35.838,144.74,144.68,3.4553]
[1724424216412,35.838,144.74,144.69,3.4549]
[1724424216616,35.838,144.74,144.64,33.17]
[1724424216818,0.04721958,144.7,144.68,0.05242768]
[1724424217010,0.04721958,144.7,144.68,3.51372484]
[1724424217214,0.04721958,144.7,144.68,0.05242768]
[1724424217414,0.04721958,144.7,144.69,3.4549]
[1724424220118,0.04721958,144.7,144.68,0.05242768]
[1724424220315,33.21721958,144.7,144.68,0.05242768]
[1724424221519,0.04721958,144.7,144.68,0.05242768]
[1724424222516,3.455,144.69,144.6,1.3813]
[1724424223014,33.17,144.68,144.63,3.4563]
[1724424223225,33.17,144.66,144.6,1.3813]
[1724424223426,33.17,144.66,144.62,3.4565]
[1724424223622,33.17,144.66,144.6,1.3813]
[1724424224026,0.05132503,144.65,144.63,0.04986337]
[1724424224325,33.17,144.66,144.57,3.47256405]
[1724424224518,0.04688931,144.63,144.61,3.4568]
[1724424225118,0.04688931,144.63,144.6,0.04618433]
[1724424225825,0.04688931,144.63,144.61,3.4569]
[1724424226128,0.04688931,144.63,144.6,0.04618433]
[1724424226630,0.04688931,144.63,144.62,3.4567]
[1724424226820,0.04688931,144.63,144.6,0.04618433]
[1724424227326,0.04688931,144.63,144.6,3.50328433]
[1724424227829,0.04688931,144.63,144.61,3.4569]
[1724424228130,0.04688931,144.63,144.6,0.04618433]
[1724424228324,0.04688931,144.63,144.62,3.4567]
[1724424230132,0.04688931,144.63,144.6,0.04618433]
[1724424230728,0.04688931,144.63,144.61,3.457]
[1724424231025,0.04688931,144.63,144.6,0.04618433]
[1724424231220,0.04688931,144.63,144.62,3.4567]
[1724424232926,1.4151,144.7,144.66,3.4557]
[1724424233332,33.17,144.73,144.64,33.17]
[1724424233925,0.04765392,144.7,144.67,3.50211749]
[1724424234230,0.04765392,144.7,144.67,0.04681749]
[1724424234427,0.04765392,144.7,144.68,3.4551]
[1724424234622,0.04765392,144.7,144.67,0.04681749]
[1724424235933,0.04765392,144.7,144.68,3.4551]
[1724424236632,0.04765392,144.7,144.69,3.455]
[1724424240234,0.04765392,144.7,144.69,36.625]
[1724424241036,0.04765392,144.7,144.68,3.4552]
[1724424241339,0.04765392,144.7,144.69,3.455]
[1724424244038,0.04765392,144.7,144.67,0.04681749]
[1724424245144,0.04765392,144.7,144.67,3.50221749]
[1724424245344,0.04765392,144.7,144.67,0.04681749]
[1724424245540,0.04765392,144.7,144.68,33.17]
[1724424245745,0.04765392,144.7,144.68,36.6251]
[1724424245947,0.04765392,144.7,144.68,33.17]
[1724424247037,0.04765392,144.7,144.69,3.455]
[1724424248442,0.04765392,144.7,144.69,4.8047]
[1724424249451,0.04765392,144.7,144.69,3.455]
[1724424251349,0.04765392,144.7,144.68,33.17]
[1724424251350,1.3751,144.77,144.73,3.4539]
[1724424251549,1.3751,144.77,144.68,33.17]
[1724424252043,1.3751,144.77,144.72,3.4541]
[1724424252348,0.05211336,144.76,144.73,0.05121477]
[1724424253151,0.05211336,144.76,144.73,3.50531477]
[1724424253351,0.05211336,144.76,144.73,0.05121477]
[1724424254547,3.50561336,144.76,144.73,0.05121477]
[1724424254747,36.67561336,144.76,144.73,0.05121477]
[1724424254943,33.22211336,144.76,144.73,0.05121477]
[1724424256557,36.67561336,144.76,144.73,0.05121477]
[1724424257056,36.6239,144.74,144.69,3.4549]
[1724424257251,33.17,144.74,144.65,3.43489322]
[1724424257453,36.624,144.74,144.69,3.455]
[1724424257659,33.17,144.74,144.66,3.49598528]
[1724424257951,0.04701582,144.71,144.7,3.4548]
[1724424258850,3.4529,144.78,144.72,3.4542]
[1724424259455,3.4529,144.78,144.73,3.454]
[1724424259950,0.05069252,144.77,144.74,0.04558984]
[1724424260857,0.05069252,144.77,144.74,3.49938984]
[1724424261550,3.50389252,144.77,144.74,3.49938984]
[1724424261951,0.05069252,144.77,144.75,3.4536]
[1724424262160,0.05069252,144.77,144.74,0.04558984]
[1724424262653,0.05069252,144.77,144.76,3.4534]
[1724424267460,37.9622,144.87,144.76,33.17]
[1724424267761,34.5113,144.87,144.77,1.2937]
[1724424267960,34.5113,144.87,144.8,3.4522]
[1724424268150,3.4511,144.86,144.8,3.4522]
[1724424268355,34.5113,144.87,144.77,1.2937]
[1724424268559,0.04485909,144.84,144.82,3.49610876]
[1724424268759,0.04485909,144.84,144.82,0.04430876]
[1724424270060,0.04485909,144.84,144.82,3.49620876]
[1724424270358,0.04485909,144.84,144.82,0.04430876]
[1724424270751,0.04485909,144.84,144.83,36.6217]
[1724424271259,0.04485909,144.84,144.83,3.4517]
[1724424273357,36.6199,144.91,144.85,3.4511]
[1724424273757,33.17,144.91,144.83,33.17]
[1724424274353,0.04385245,144.88,144.86,0.04899549]
[1724424274756,6.8923,145.07,144.87,26.48]
[1724424274953,26.48,144.95,144.87,26.48]
[1724424275161,26.48,144.93,144.87,3.4507]
[1724424275565,29.9295,144.93,144.87,3.4507]
[1724424275959,0.04503901,144.91,144.89,0.05171156]
[1724424281666,0.04503901,144.91,144.9,3.45]
[1724424282469,0.04503901,144.91,144.89,3.50191156]
[1724424283167,0.04503901,144.91,144.9,3.45]
[1724424283870,0.04503901,144.91,144.89,3.50191156]
[1724424285474,0.04503901,144.91,144.9,3.45]
[1724424286168,0.04503901,144.91,144.89,3.50191156]
[1724424286772,0.04503901,144.91,144.9,3.45]
[1724424286965,27.839,144.98,144.9,26.48]
[1724424287473,1.359,144.98,144.9,26.48]
[1724424287870,1.359,144.98,144.92,26.48]
[1724424288071,0.0480415,144.96,144.94,0.05246713]
[1724424288766,0.0480415,144.96,144.94,3.50136713]
[1724424288961,0.0480415,144.96,144.94,0.05246713]
[1724424289162,26.5280415,144.96,144.94,0.05246713]
[1724424289371,26.5280415,144.96,144.88,1.4085]
[1724424289568,26.48,144.93,144.88,1.4085]
[1724424290471,0.05174625,144.92,144.89,0.0469156]
[1724424291374,0.05174625,144.92,144.9,3.45]
[1724424291772,0.05174625,144.92,144.89,0.0469156]
[1724424292171,0.05174625,144.92,144.89,3.4970156]
[1724424292374,0.05174625,144.92,144.89,0.0469156]
[1724424293667,0.05174625,144.92,144.89,3.4971156]
[1724424293869,0.05174625,144.92,144.89,0.0469156]
[1724424295370,0.05174625,144.92,144.89,3.4970156]
[1724424295765,0.05174625,144.92,144.89,0.0469156]
[1724424296377,0.05174625,144.92,144.89,3.4971156]
[1724424296571,0.05174625,144.92,144.89,0.0469156]
[1724424301982,0.05174625,144.92,144.89,26.5269156]
[1724424302381,0.05174625,144.92,144.91,3.4498]
[1724424302576,0.05174625,144.92,144.91,29.9298]
[1724424303776,0.05174625,144.92,144.91,3.4498]
[1724424304276,0.05174625,144.92,144.91,29.9298]
[1724424304486,1.3315,144.98,144.93,3.4492]
[1724424304777,1.3315,144.98,144.91,26.48]
[1724424305380,0.04959935,144.96,144.93,0.04793549]
[1724424307275,0.04959935,144.96,144.95,3.4488]
[1724424307879,0.04959935,144.96,144.93,3.49703549]
[1724424308079,0.04959935,144.96,144.93,0.04793549]
[1724424308375,0.04959935,144.96,144.95,3.4488]
[1724424308577,74.43825443,145.04,144.95,26.48]
[1724424309085,3.4472,145.02,144.95,26.48]
[1724424309474,3.4472,145.02,144.96,3.4485]
[1724424309786,74.43825443,145.04,144.98,0.05281005]
[1724424309787,0.0473946,145.0,144.98,0.05281005]
[1724424311590,3.4951946,145.0,144.98,0.05281005]
[1724424311784,0.0473946,145.0,144.98,0.05281005]
[1724424313985,0.0473946,145.0,144.98,26.53281005]
[1724424314189,0.0473946,145.0,144.98,3.50081005]
[1724424314581,0.0473946,145.0,144.98,0.05281005]
[1724424315489,3.4950946,145.0,144.98,0.05281005]
[1724424315692,0.0473946,145.0,144.92,26.48]
[1724424315887,26.48,144.99,144.93,3.4492]
[1724424316788,26.48,144.99,144.95,0.04579954]
[1724424316789,3.50072145,144.97,144.95,0.04579954]
[1724424316989,26.53232145,144.97,144.87,26.48]
[1724424317183,26.48,144.95,144.87,29.97791582]
[1724424317385,26.48,144.95,144.9,3.4499]
[1724424317386,3.4491,144.94,144.9,3.4499]
[1724424317582,26.48,144.93,144.86,1.3577]
[1724424317897,26.48,144.93,144.85,29.1449]
[1724424317898,26.48,144.93,144.85,1.322]
[1724424318088,0.04742719,144.9,144.88,0.05236072]
[1724424318895,26.48,144.89,144.88,0.05236072]
[1724424319299,29.9303,144.89,144.88,0.05236072]
[1724424319889,3.451,144.86,144.81,1.322]
[1724424320086,26.48,144.87,144.78,29.1793]
[1724424320283,3.451,144.86,144.8,3.4522]
[1724424320492,33.12,144.87,144.78,6.10291116]
[1724424320990,0.04843825,144.84,144.81,0.05152538]
[1724424321195,0.04843825,144.84,144.81,3.50362538]
[1724424322390,0.04843825,144.84,144.81,0.05152538]
[1724424323486,0.04843825,144.84,144.81,3.50352538]
[1724424323687,0.04843825,144.84,144.81,0.05152538]
[1724424324295,0.04843825,144.84,144.82,33.12]
[1724424324499,0.04843825,144.84,144.81,0.05152538]
[1724424327797,0.04843825,144.84,144.81,33.17152538]
[1724424328799,0.04843825,144.84,144.82,3.4517]
[1724424328999,0.04843825,144.84,144.81,33.17152538]
[1724424329494,0.04843825,144.84,144.82,3.4519]
[1724424329897,0.04843825,144.84,144.83,33.12]
[1724424330098,3.4499,144.91,144.84,3.4513]
[1724424330504,3.4499,144.91,144.83,33.12]
[1724424330700,3.4499,144.91,144.85,3.4512]
[1724424331201,33.12,144.9,144.82,1.3376]
[1724424331499,3.45835076,144.91,144.7,47.95918758]
[1724424331500,33.12,144.88,144.87,0.04617869]
[1724424331900,36.5705,144.88,144.82,3.4518]
[1724424332107,36.5705,144.88,144.78,39.22741111]
[1724424332408,0.04458068,144.84,144.83,3.4517]
[1724424332607,3.4508,144.87,144.82,0.04895477]
[1724424332805,0.04679941,144.85,144.82,3.50075477]
[1724424333109,0.04679941,144.85,144.82,0.04895477]
[1724424334509,0.04679941,144.85,144.82,3.50075477]
[1724424334702,0.04679941,144.85,144.83,33.12]
[1724424335110,0.04679941,144.85,144.84,4.8306]
[1724424335403,2.659,144.94,144.84,34.4991]
[1724424336207,6.1082,144.94,144.87,3.4506]
[1724424336603,6.1082,144.94,144.84,34.4991]
[1724424336604,31.0289,144.95,144.88,3.4503]
[1724424336801,27.58,144.95,144.88,3.4503]
[1724424337001,27.58,144.95,144.86,36.49992824]
[1724424337213,3.49410062,144.92,144.89,0.04885012]
[1724424337404,0.04440062,144.92,144.89,0.04885012]
[1724424337911,33.16440062,144.92,144.89,0.04885012]
[1724424338114,33.12,144.9,144.89,0.04885012]
[1724424338310,33.12,144.9,144.78,36.52811111]
[1724424338610,33.12,144.88,144.79,1.3561]
[1724424339213,36.5705,144.88,144.82,3.4518]
[1724424339409,0.04900672,144.85,144.82,0.0466625]
[1724424339605,3.50050672,144.85,144.82,0.0466625]
[1724424340113,0.04900672,144.85,144.82,0.0466625]
[1724424340708,33.16900672,144.85,144.82,0.0466625]
[1724424340906,36.5717,144.83,144.82,0.0466625]
[1724424341818,33.12,144.83,144.82,0.0466625]
[1724424342214,0.04900672,144.85,144.66,3.18056921]
[1724424342414,33.12,144.81,144.71,3.9754]
[1724424342618,33.12,144.79,144.73,3.4539]
[1724424342825,3.4531,144.78,144.73,3.4539]
[1724424343024,33.12,144.79,144.71,3.9754]
[1724424343215,0.04925178,144.76,144.74,0.04715585]
[1724424345722,0.04925178,144.76,144.74,33.16715585]
[1724424345920,33.12,144.85,144.74,33.12]
[1724424346221,35.8431,144.87,144.76,33.12]
[1724424346823,35.8431,144.87,144.72,33.12]
[1724424346824,0.04832895,144.83,144.8,0.05125588]
[1724424347124,33.12,144.82,144.8,0.05125588]
[1724424347625,3.4522,144.81,144.8,0.05125588]
[1724424347820,33.12,144.81,144.71,3.9754]
[1724424348624,3.4528,144.79,144.74,3.4538]
[1724424348821,0.04370636,144.78,144.75,0.04933731]
[1724424349219,0.04370636,144.78,144.75,3.50273731]
[1724424349621,0.04370636,144.78,144.75,0.04933731]
[1724424350230,0.04370636,144.78,144.77,3.4531]
[1724424350419,0.04370636,144.78,144.75,0.04933731]
[1724424352526,0.04370636,144.78,144.76,3.4534]
[1724424352920,0.04370636,144.78,144.75,0.04933731]
[1724424353720,0.04370636,144.78,144.75,3.50283731]
[1724424354026,0.04370636,144.78,144.75,0.04933731]
[1724424354220,0.04370636,144.78,144.76,3.4532]
[1724424354418,0.04370636,144.78,144.75,0.04933731]
[1724424354820,0.04370636,144.78,144.76,3.4534]
[1724424355429,0.04370636,144.78,144.77,3.4531]
[1724424357729,0.04370636,144.78,144.77,4.7855]
[1724424358519,31.2967,144.86,144.81,3.4521]
[1724424358818,26.5,144.85,144.77,27.8324]
[1724424359126,26.5,144.85,144.8,3.4524]
[1724424359627,0.04712619,144.84,144.81,0.04648405]
[1724424360722,0.04712619,144.84,144.82,3.4518]
[1724424360925,0.04712619,144.84,144.81,0.04648405]
[1724424362329,29.9519,144.82,144.81,0.04648405]
[1724424362529,29.9519,144.82,144.71,27.8855]
[1724424362530,26.5,144.82,144.71,27.8855]
[1724424362724,26.5,144.79,144.71,27.8855]
[1724424363325,26.5,144.79,144.71,1.3855]
[1724424363527,26.5,144.77,144.71,1.3855]
[1724424363728,0.04831793,144.76,144.74,0.05052527]
[1724424365226,0.04831793,144.76,144.75,3.4536]
[1724424365529,0.04831793,144.76,144.74,0.05052527]
[1724424365728,0.04831793,144.76,144.74,3.50432527]
[1724424366728,0.04831793,144.76,144.75,3.4536]
[1724424368236,1.3089,144.83,144.78,3.4528]
[1724424368425,33.15,144.86,144.76,33.15]
[1724424368831,33.15,144.84,144.62,32.3425537]
[1724424369128,33.15,144.74,144.65,1.3632]
[1724424369331,3.4552,144.69,144.68,0.05277209]
[1724424369533,33.20162744,144.7,144.67,0.04616461]
[1724424369834,34.58122744,144.7,144.67,0.04616461]
[1724424370632,3.4552,144.69,144.67,0.04616461]
[1724424372229,4.88612744,144.7,144.67,0.04616461]
[1724424372430,33.15,144.69,144.67,0.04616461]
[1724424373035,0.05162744,144.7,144.67,0.04616461]
[1724424373529,0.05162744,144.7,144.67,3.50146461]
[1724424373934,0.05162744,144.7,144.67,0.04616461]
[1724424375832,33.15,144.68,144.61,1.3942]